[Event "Titled Tuesday Blitz June 28 Early 2022"]
[White "Agasarov, Benik"]
[Black "Plazuelo Pascual, Juan"]
[WhiteFideId "13314823"]
[BlackFideId "32059566"]
[WhiteElo "2696"]
[BlackElo "2359"]
[Result "0-1"]
[Round "11"]
[TimeControl "180+1"]
[Date "2022.06.28"]
[WhiteClock "0:00:07"]
[BlackClock "0:00:05"]

1. e4 {[%clk 0:03:00]}  c5 {[%clk 0:03:00]} 2. Nf3 {[%clk 0:03:00]}  Nc6 {[%clk 0:03:00]} 3. Bb5 {[%clk 0:03:00]}  e6 {[%clk 0:03:00]} 4. O-O {[%clk 0:02:58]}  Nge7 {[%clk 0:02:58]} 5. d4 {[%clk 0:02:58]}  cxd4 {[%clk 0:02:58]} 6. Nxd4 {[%clk 0:02:59]}  Qb6 {[%clk 0:02:58]} 7. Nxc6 {[%clk 0:02:59]}  bxc6 {[%clk 0:02:59]} 8. Be2 {[%clk 0:02:58]}  Ng6 {[%clk 0:02:52]} 9. c4 {[%clk 0:02:53]}  Be7 {[%clk 0:02:51]} 10. Nc3 {[%clk 0:02:53]}  O-O {[%clk 0:02:50]} 11. b3 {[%clk 0:02:53]}  Rd8 {[%clk 0:02:25]} 12. Be3 {[%clk 0:02:49]}  Qc7 {[%clk 0:02:25]} 13. Rc1 {[%clk 0:02:47]}  Nf4 {[%clk 0:02:20]} 14. Qd2 {[%clk 0:02:40]}  e5 {[%clk 0:02:17]} 15. g3 {[%clk 0:02:32]}  Ne6 {[%clk 0:02:10]} 16. Bg4 {[%clk 0:02:28]}  d6 {[%clk 0:01:54]} 17. f4 {[%clk 0:02:18]}  Bf6 {[%clk 0:01:40]} 18. Bxe6 {[%clk 0:02:11]}  fxe6 {[%clk 0:01:22]} 19. f5 {[%clk 0:02:09]}  exf5 {[%clk 0:01:22]} 20. exf5 {[%clk 0:02:08]}  Qa5 {[%clk 0:01:14]} 21. Bg5 {[%clk 0:02:01]}  Bxg5 {[%clk 0:00:48]} 22. Qxg5 {[%clk 0:01:59]}  h6 {[%clk 0:00:49]} 23. Qg6 {[%clk 0:01:57]}  Qc7 {[%clk 0:00:49]} 24. Rcd1 {[%clk 0:01:38]}  d5 {[%clk 0:00:36]} 25. f6 {[%clk 0:01:33]}  Qf7 {[%clk 0:00:33]} 26. Qxf7+ {[%clk 0:01:33]}  Kxf7 {[%clk 0:00:34]} 27. cxd5 {[%clk 0:01:33]}  gxf6 {[%clk 0:00:31]} 28. dxc6 {[%clk 0:01:28]}  Bh3 {[%clk 0:00:24]} 29. Rxd8 {[%clk 0:01:27]}  Rxd8 {[%clk 0:00:23]} 30. Rc1 {[%clk 0:01:20]}  a6 {[%clk 0:00:19]} 31. Ne4 {[%clk 0:01:17]}  Ke6 {[%clk 0:00:15]} 32. c7 {[%clk 0:01:16]}  Rc8 {[%clk 0:00:15]} 33. Nc5+ {[%clk 0:01:16]}  Kd6 {[%clk 0:00:10]} 34. Nxa6 {[%clk 0:01:16]}  Bf5 {[%clk 0:00:11]} 35. b4 {[%clk 0:01:15]}  Bd3 {[%clk 0:00:11]} 36. Nc5 {[%clk 0:01:10]}  Bg6 {[%clk 0:00:06]} 37. Nb7+ {[%clk 0:01:07]}  Kd7 {[%clk 0:00:05]} 38. Nc5+ {[%clk 0:01:05]}  Kd6 {[%clk 0:00:06]} 39. Rf1 {[%clk 0:01:02]}  f5 {[%clk 0:00:05]} 40. Na6 {[%clk 0:01:03]}  f4 {[%clk 0:00:05]} 41. gxf4 {[%clk 0:01:02]}  Bd3 {[%clk 0:00:05]} 42. fxe5+ {[%clk 0:01:01]}  Kxe5 {[%clk 0:00:05]} 43. Nc5 {[%clk 0:01:01]}  Bxf1 {[%clk 0:00:05]} 44. Kxf1 {[%clk 0:01:01]}  Rxc7 {[%clk 0:00:05]} 45. a4 {[%clk 0:01:01]}  Kd5 {[%clk 0:00:04]} 46. a5 {[%clk 0:01:00]}  Kc4 {[%clk 0:00:05]} 47. Ke2 {[%clk 0:01:00]}  Re7+ {[%clk 0:00:04]} 48. Kd2 {[%clk 0:01:01]}  Kxb4 {[%clk 0:00:05]} 49. Nd3+ {[%clk 0:00:57]}  Kxa5 {[%clk 0:00:05]} 50. Nf4 {[%clk 0:00:57]}  Kb5 {[%clk 0:00:05]} 51. Kd3 {[%clk 0:00:57]}  Kc5 {[%clk 0:00:05]} 52. Ng6 {[%clk 0:00:57]}  Re8 {[%clk 0:00:04]} 53. h4 {[%clk 0:00:57]}  Kd5 {[%clk 0:00:04]} 54. Nf4+ {[%clk 0:00:56]}  Kd6 {[%clk 0:00:04]} 55. Kd4 {[%clk 0:00:56]}  Re1 {[%clk 0:00:04]} 56. Ng6 {[%clk 0:00:53]}  Ke6 {[%clk 0:00:04]} 57. Nf4+ {[%clk 0:00:51]}  Kf5 {[%clk 0:00:04]} 58. Ng2 {[%clk 0:00:50]}  Re8 {[%clk 0:00:04]} 59. Ne3+ {[%clk 0:00:49]}  Kf4 {[%clk 0:00:05]} 60. Nd5+ {[%clk 0:00:50]}  Kf5 {[%clk 0:00:04]} 61. Ne3+ {[%clk 0:00:50]}  Kg6 {[%clk 0:00:04]} 62. Ng4 {[%clk 0:00:49]}  Re1 {[%clk 0:00:02]} 63. Ne3 {[%clk 0:00:44]}  Kh5 {[%clk 0:00:02]} 64. Kd3 {[%clk 0:00:45]}  Ra1 {[%clk 0:00:01]} 65. Ng2 {[%clk 0:00:43]}  Ra4 {[%clk 0:00:01]} 66. Ke3 {[%clk 0:00:42]}  Kg4 {[%clk 0:00:02]} 67. Kf2 {[%clk 0:00:38]}  Ra3 {[%clk 0:00:03]} 68. Ke2 {[%clk 0:00:35]}  h5 {[%clk 0:00:03]} 69. Kf2 {[%clk 0:00:34]}  Ra2+ {[%clk 0:00:03]} 70. Kf1 {[%clk 0:00:34]}  Kg3 {[%clk 0:00:04]} 71. Ne3 {[%clk 0:00:33]}  Kxh4 {[%clk 0:00:05]} 72. Nd5 {[%clk 0:00:31]}  Kg5 {[%clk 0:00:05]} 73. Nc3 {[%clk 0:00:31]}  Ra1+ {[%clk 0:00:06]} 74. Kg2 {[%clk 0:00:31]}  Rc1 {[%clk 0:00:06]} 75. Nd5 {[%clk 0:00:30]}  h4 {[%clk 0:00:06]} 76. Kh3 {[%clk 0:00:30]}  Rd1 {[%clk 0:00:06]} 77. Nc7 {[%clk 0:00:27]}  Rd6 {[%clk 0:00:04]} 78. Nb5 {[%clk 0:00:26]}  Rd3+ {[%clk 0:00:05]} 79. Kh2 {[%clk 0:00:26]}  Kf4 {[%clk 0:00:06]} 80. Na7 {[%clk 0:00:26]}  Ke5 {[%clk 0:00:05]} 81. Nc6+ {[%clk 0:00:25]}  Kf4 {[%clk 0:00:04]} 82. Ne7 {[%clk 0:00:24]}  Kg4 {[%clk 0:00:03]} 83. Nc6 {[%clk 0:00:15]}  Rd2+ {[%clk 0:00:04]} 84. Kg1 {[%clk 0:00:14]}  Kg3 {[%clk 0:00:05]} 85. Kf1 {[%clk 0:00:14]}  h3 {[%clk 0:00:06]} 86. Ke1 {[%clk 0:00:09]}  Rd6 {[%clk 0:00:06]} 87. Nd4 {[%clk 0:00:07]}  Rxd4 {[%clk 0:00:05]} 88. Ke2 {[%clk 0:00:07]}  Rf4 {[%clk 0:00:05]} 0-1


[Site "https://www.chess.com"]

[Event "Titled Tuesday Blitz June 28 Early 2022"]
[White "Andreikin, Dmitry"]
[Black "Nakamura, Hikaru"]
[WhiteFideId "4158814"]
[BlackFideId "2016192"]
[WhiteElo "2736"]
[BlackElo "2850"]
[Result "1/2-1/2"]
[Round "11"]
[TimeControl "180+1"]
[Date "2022.06.28"]
[WhiteClock "0:00:06"]
[BlackClock "0:00:06"]

1. d4 {[%clk 0:03:00]}  Nf6 {[%clk 0:02:58]} 2. c4 {[%clk 0:03:01]}  e6 {[%clk 0:02:59]} 3. Nc3 {[%clk 0:03:00]}  Bb4 {[%clk 0:02:59]} 4. Nf3 {[%clk 0:03:00]}  O-O {[%clk 0:02:57]} 5. e3 {[%clk 0:02:59]}  c5 {[%clk 0:02:56]} 6. Bd3 {[%clk 0:02:59]}  d5 {[%clk 0:02:56]} 7. cxd5 {[%clk 0:02:57]}  exd5 {[%clk 0:02:55]} 8. O-O {[%clk 0:02:58]}  cxd4 {[%clk 0:02:38]} 9. Nxd4 {[%clk 0:02:54]}  Nc6 {[%clk 0:02:38]} 10. Nce2 {[%clk 0:02:51]}  Bg4 {[%clk 0:02:28]} 11. f3 {[%clk 0:02:40]}  Bh5 {[%clk 0:02:23]} 12. a3 {[%clk 0:02:36]}  Bd6 {[%clk 0:02:18]} 13. Nf5 {[%clk 0:02:33]}  Bc7 {[%clk 0:02:13]} 14. Bd2 {[%clk 0:02:20]}  Bg6 {[%clk 0:02:12]} 15. Bc3 {[%clk 0:02:20]}  Re8 {[%clk 0:02:08]} 16. Ned4 {[%clk 0:02:16]}  Bb6 {[%clk 0:02:00]} 17. Qd2 {[%clk 0:02:01]}  Ne5 {[%clk 0:01:49]} 18. Rad1 {[%clk 0:01:44]}  a6 {[%clk 0:01:10]} 19. Rfe1 {[%clk 0:01:43]}  Qd7 {[%clk 0:01:10]} 20. Bb1 {[%clk 0:01:27]}  Rac8 {[%clk 0:01:04]} 21. Qf2 {[%clk 0:01:23]}  Nc4 {[%clk 0:01:04]} 22. g4 {[%clk 0:00:58]}  Nxa3 {[%clk 0:01:02]} 23. Nxg7 {[%clk 0:00:50]}  Nxb1 {[%clk 0:00:26]} 24. Nxe8 {[%clk 0:00:48]}  Nxe8 {[%clk 0:00:26]} 25. Rxb1 {[%clk 0:00:45]}  Bxb1 {[%clk 0:00:27]} 26. Rxb1 {[%clk 0:00:45]}  Nd6 {[%clk 0:00:28]} 27. Qh4 {[%clk 0:00:40]}  Bd8 {[%clk 0:00:28]} 28. Qh6 {[%clk 0:00:39]}  f6 {[%clk 0:00:27]} 29. Rd1 {[%clk 0:00:38]}  Qe7 {[%clk 0:00:19]} 30. Bb4 {[%clk 0:00:34]}  Nf7 {[%clk 0:00:16]} 31. Bxe7 {[%clk 0:00:31]}  Nxh6 {[%clk 0:00:17]} 32. Bxd8 {[%clk 0:00:30]}  Rxd8 {[%clk 0:00:17]} 33. Ne6 {[%clk 0:00:30]}  Re8 {[%clk 0:00:16]} 34. Nf4 {[%clk 0:00:23]}  Rxe3 {[%clk 0:00:17]} 35. Kf2 {[%clk 0:00:24]}  Rb3 {[%clk 0:00:18]} 36. Rd2 {[%clk 0:00:24]}  d4 {[%clk 0:00:17]} 37. Ne6 {[%clk 0:00:24]}  d3 {[%clk 0:00:15]} 38. Nc5 {[%clk 0:00:22]}  Rb5 {[%clk 0:00:15]} 39. Nxd3 {[%clk 0:00:22]}  Nf7 {[%clk 0:00:16]} 40. Nf4 {[%clk 0:00:20]}  f5 {[%clk 0:00:16]} 41. Ne6 {[%clk 0:00:16]}  fxg4 {[%clk 0:00:15]} 42. fxg4 {[%clk 0:00:17]}  Ne5 {[%clk 0:00:15]} 43. h3 {[%clk 0:00:16]}  Kf7 {[%clk 0:00:16]} 44. Nd4 {[%clk 0:00:15]}  Rxb2 {[%clk 0:00:15]} 45. Rxb2 {[%clk 0:00:14]}  Nd3+ {[%clk 0:00:15]} 46. Ke3 {[%clk 0:00:15]}  Nxb2 {[%clk 0:00:16]} 47. Nf5 {[%clk 0:00:14]}  Ke6 {[%clk 0:00:16]} 48. Kd4 {[%clk 0:00:12]}  Nd1 {[%clk 0:00:14]} 49. h4 {[%clk 0:00:11]}  Nf2 {[%clk 0:00:14]} 50. Ne3 {[%clk 0:00:12]}  a5 {[%clk 0:00:14]} 51. g5 {[%clk 0:00:11]}  Nh3 {[%clk 0:00:13]} 52. Nd5 {[%clk 0:00:10]}  a4 {[%clk 0:00:12]} 53. Nf6 {[%clk 0:00:10]}  h6 {[%clk 0:00:09]} 54. Ne4 {[%clk 0:00:10]}  h5 {[%clk 0:00:08]} 55. Nc5+ {[%clk 0:00:07]}  Kf5 {[%clk 0:00:09]} 56. Nxa4 {[%clk 0:00:07]}  Nf4 {[%clk 0:00:09]} 57. Nc5 {[%clk 0:00:06]}  b5 {[%clk 0:00:09]} 58. Ne4 {[%clk 0:00:04]}  Ne6+ {[%clk 0:00:09]} 59. Ke3 {[%clk 0:00:04]}  b4 {[%clk 0:00:09]} 60. Ng3+ {[%clk 0:00:04]}  Kg4 {[%clk 0:00:09]} 61. Nxh5 {[%clk 0:00:05]}  Kxh5 {[%clk 0:00:09]} 62. Kd3 {[%clk 0:00:05]}  Kxh4 {[%clk 0:00:04]} 63. Kc4 {[%clk 0:00:05]}  b3 {[%clk 0:00:04]} 64. Kxb3 {[%clk 0:00:05]}  Ng7 {[%clk 0:00:04]} 65. g6 {[%clk 0:00:05]}  Kh5 {[%clk 0:00:05]} 66. Kc4 {[%clk 0:00:06]}  Kxg6 {[%clk 0:00:06]} 1/2-1/2


[Site "https://www.chess.com"]

[Event "Titled Tuesday Blitz June 28 Early 2022"]
[White "Antonio, Jorge Carlos"]
[Black "Petrova, Irina"]
[WhiteFideId "113190"]
[BlackFideId "14124122"]
[WhiteElo "2247"]
[BlackElo "1993"]
[Result "1-0"]
[Round "11"]
[TimeControl "180+1"]
[Date "2022.06.28"]
[WhiteClock "0:00:06"]
[BlackClock "0:00:35"]

1. e4 {[%clk 0:03:00]}  d6 {[%clk 0:03:00]} 2. d4 {[%clk 0:03:00]}  Nf6 {[%clk 0:03:01]} 3. Nc3 {[%clk 0:02:58]}  e5 {[%clk 0:03:01]} 4. dxe5 {[%clk 0:02:56]}  dxe5 {[%clk 0:03:02]} 5. Qxd8+ {[%clk 0:02:54]}  Kxd8 {[%clk 0:03:03]} 6. Bc4 {[%clk 0:02:43]}  Ke8 {[%clk 0:03:01]} 7. Nf3 {[%clk 0:02:38]}  Bd6 {[%clk 0:03:01]} 8. Bg5 {[%clk 0:02:31]}  Nbd7 {[%clk 0:03:00]} 9. Nb5 {[%clk 0:02:25]}  Ke7 {[%clk 0:02:52]} 10. Nd2 {[%clk 0:02:21]}  a6 {[%clk 0:02:44]} 11. Nxd6 {[%clk 0:02:18]}  cxd6 {[%clk 0:02:45]} 12. a4 {[%clk 0:02:14]}  h6 {[%clk 0:02:45]} 13. Be3 {[%clk 0:02:10]}  Nc5 {[%clk 0:02:40]} 14. f3 {[%clk 0:02:08]}  Be6 {[%clk 0:02:40]} 15. Bxc5 {[%clk 0:02:02]}  dxc5 {[%clk 0:02:41]} 16. Bxe6 {[%clk 0:01:59]}  Kxe6 {[%clk 0:02:39]} 17. Nc4 {[%clk 0:01:57]}  b5 {[%clk 0:02:34]} 18. Ne3 {[%clk 0:01:52]}  g6 {[%clk 0:02:31]} 19. Ke2 {[%clk 0:01:49]}  Rhd8 {[%clk 0:02:15]} 20. Rhd1 {[%clk 0:01:44]}  Rxd1 {[%clk 0:02:10]} 21. Nxd1 {[%clk 0:01:41]}  b4 {[%clk 0:01:54]} 22. Ne3 {[%clk 0:01:37]}  Rd8 {[%clk 0:01:52]} 23. c3 {[%clk 0:01:30]}  bxc3 {[%clk 0:01:39]} 24. bxc3 {[%clk 0:01:29]}  Rb8 {[%clk 0:01:39]} 25. Nc4 {[%clk 0:01:26]}  Rb3 {[%clk 0:01:38]} 26. Kd3 {[%clk 0:01:22]}  Ne8 {[%clk 0:01:31]} 27. Kc2 {[%clk 0:01:18]}  Rb8 {[%clk 0:01:31]} 28. Rd1 {[%clk 0:01:16]}  f6 {[%clk 0:01:29]} 29. Rd5 {[%clk 0:01:08]}  Rc8 {[%clk 0:01:24]} 30. a5 {[%clk 0:01:05]}  Rc6 {[%clk 0:01:22]} 31. Rd8 {[%clk 0:01:00]}  Nd6 {[%clk 0:01:15]} 32. Kb3 {[%clk 0:00:51]}  Nb5 {[%clk 0:01:07]} 33. Ra8 {[%clk 0:00:43]}  h5 {[%clk 0:00:59]} 34. Nb6 {[%clk 0:00:33]}  Nc7 {[%clk 0:00:59]} 35. Rc8 {[%clk 0:00:29]}  Kd6 {[%clk 0:00:59]} 36. Rg8 {[%clk 0:00:24]}  g5 {[%clk 0:00:55]} 37. Rg7 {[%clk 0:00:18]}  Ke6 {[%clk 0:00:44]} 38. Nc8 {[%clk 0:00:13]}  f5 {[%clk 0:00:39]} 39. Rg6+ {[%clk 0:00:10]}  Kd7 {[%clk 0:00:38]} 40. Rxg5 {[%clk 0:00:10]}  fxe4 {[%clk 0:00:38]} 41. Nb6+ {[%clk 0:00:08]}  Kd6 {[%clk 0:00:35]} 42. fxe4 {[%clk 0:00:08]}  c4+ {[%clk 0:00:33]} 43. Nxc4+ {[%clk 0:00:07]}  Kc5 {[%clk 0:00:32]} 44. Nxe5 {[%clk 0:00:07]}  Re6 {[%clk 0:00:30]} 45. Nd3+ {[%clk 0:00:05]}  Kd6 {[%clk 0:00:29]} 46. Rd5+ {[%clk 0:00:04]}  Nxd5 {[%clk 0:00:29]} 47. exd5 {[%clk 0:00:05]}  Kxd5 {[%clk 0:00:30]} 48. Nf4+ {[%clk 0:00:04]}  Ke5 {[%clk 0:00:30]} 49. Nxe6 {[%clk 0:00:05]}  Kxe6 {[%clk 0:00:31]} 50. Kc4 {[%clk 0:00:05]}  Kd6 {[%clk 0:00:31]} 51. Kd4 {[%clk 0:00:05]}  h4 {[%clk 0:00:31]} 52. g3 {[%clk 0:00:05]}  h3 {[%clk 0:00:30]} 53. g4 {[%clk 0:00:05]}  Ke6 {[%clk 0:00:30]} 54. g5 {[%clk 0:00:05]}  Kf5 {[%clk 0:00:31]} 55. Kc5 {[%clk 0:00:06]}  Kxg5 {[%clk 0:00:31]} 56. Kb6 {[%clk 0:00:06]}  Kf4 {[%clk 0:00:32]} 57. c4 {[%clk 0:00:07]}  Kf3 {[%clk 0:00:32]} 58. c5 {[%clk 0:00:08]}  Kg2 {[%clk 0:00:33]} 59. c6 {[%clk 0:00:09]}  Kxh2 {[%clk 0:00:33]} 60. c7 {[%clk 0:00:10]}  Kg1 {[%clk 0:00:34]} 61. c8=Q {[%clk 0:00:11]}  h2 {[%clk 0:00:34]} 62. Qg4+ {[%clk 0:00:08]}  Kh1 {[%clk 0:00:34]} 63. Qh4 {[%clk 0:00:06]}  Kg1 {[%clk 0:00:34]} 64. Qxh2+ {[%clk 0:00:06]}  Kxh2 {[%clk 0:00:35]} 65. Kxa6 {[%clk 0:00:06]} 1-0


[Site "https://www.chess.com"]

[Event "Titled Tuesday Blitz June 28 Early 2022"]
[White "Ardila, Oscar Humberto"]
[Black "Ghazarian, Kirk"]
[WhiteFideId "4404742"]
[BlackFideId "30908604"]
[WhiteElo "1956"]
[BlackElo "2003"]
[Result "0-1"]
[Round "11"]
[TimeControl "180+1"]
[Date "2022.06.28"]
[WhiteClock "0:00:56"]
[BlackClock "0:01:38"]

1. d4 {[%clk 0:03:00]}  d5 {[%clk 0:02:59]} 2. c4 {[%clk 0:03:00]}  c6 {[%clk 0:02:59]} 3. cxd5 {[%clk 0:03:00]}  cxd5 {[%clk 0:03:00]} 4. Nc3 {[%clk 0:03:00]}  Nf6 {[%clk 0:03:01]} 5. Nf3 {[%clk 0:03:00]}  g6 {[%clk 0:03:02]} 6. Bf4 {[%clk 0:03:01]}  Bg7 {[%clk 0:03:03]} 7. e3 {[%clk 0:03:01]}  O-O {[%clk 0:03:03]} 8. Be2 {[%clk 0:03:01]}  Nc6 {[%clk 0:03:04]} 9. O-O {[%clk 0:03:01]}  a6 {[%clk 0:03:05]} 10. h3 {[%clk 0:03:01]}  b5 {[%clk 0:03:05]} 11. Rc1 {[%clk 0:03:00]}  Bb7 {[%clk 0:03:05]} 12. a4 {[%clk 0:03:00]}  b4 {[%clk 0:03:04]} 13. Nb1 {[%clk 0:02:56]}  Rc8 {[%clk 0:03:01]} 14. Nbd2 {[%clk 0:02:55]}  Ne4 {[%clk 0:03:00]} 15. Nb3 {[%clk 0:02:49]}  Na5 {[%clk 0:02:51]} 16. Nxa5 {[%clk 0:02:02]}  Qxa5 {[%clk 0:02:51]} 17. Rxc8 {[%clk 0:02:02]}  Rxc8 {[%clk 0:02:52]} 18. Ne5 {[%clk 0:02:02]}  Bxe5 {[%clk 0:02:40]} 19. Bxe5 {[%clk 0:02:02]}  Bc6 {[%clk 0:02:40]} 20. b3 {[%clk 0:02:00]}  Bd7 {[%clk 0:02:32]} 21. Qd3 {[%clk 0:01:56]}  Rc3 {[%clk 0:02:27]} 22. Qxa6 {[%clk 0:01:54]}  Qxa6 {[%clk 0:02:28]} 23. Bxa6 {[%clk 0:01:53]}  Rxb3 {[%clk 0:02:25]} 24. Bb5 {[%clk 0:01:54]}  Bf5 {[%clk 0:02:15]} 25. g4 {[%clk 0:01:33]}  Be6 {[%clk 0:02:14]} 26. Rc1 {[%clk 0:01:09]}  Nc3 {[%clk 0:02:11]} 27. Kg2 {[%clk 0:01:09]}  f6 {[%clk 0:02:07]} 28. Bf4 {[%clk 0:01:07]}  Ra3 {[%clk 0:02:06]} 29. Bh6 {[%clk 0:01:07]}  Kf7 {[%clk 0:02:00]} 30. Kg3 {[%clk 0:01:00]}  Nxa4 {[%clk 0:01:40]} 31. Rc8 {[%clk 0:00:56]}  Bxc8 {[%clk 0:01:38]} 0-1


[Site "https://www.chess.com"]

[Event "Titled Tuesday Blitz June 28 Early 2022"]
[White "Arias, Juan Cruz"]
[Black "Nenezic, Marko"]
[WhiteFideId "118540"]
[BlackFideId "912123"]
[WhiteElo "2091"]
[BlackElo "2432"]
[Result "1/2-1/2"]
[Round "11"]
[TimeControl "180+1"]
[Date "2022.06.28"]
[WhiteClock "0:00:22"]
[BlackClock "0:01:06"]

1. e4 {[%clk 0:03:00]}  c5 {[%clk 0:02:57]} 2. Nf3 {[%clk 0:03:00]}  d6 {[%clk 0:02:57]} 3. d4 {[%clk 0:03:00]}  cxd4 {[%clk 0:02:58]} 4. Nxd4 {[%clk 0:03:01]}  Nf6 {[%clk 0:02:58]} 5. Nc3 {[%clk 0:03:02]}  a6 {[%clk 0:02:59]} 6. g3 {[%clk 0:03:02]}  e5 {[%clk 0:02:57]} 7. Nde2 {[%clk 0:03:01]}  Be6 {[%clk 0:02:56]} 8. Bg2 {[%clk 0:02:59]}  Nbd7 {[%clk 0:02:56]} 9. f4 {[%clk 0:02:57]}  exf4 {[%clk 0:02:44]} 10. gxf4 {[%clk 0:02:57]}  Bg4 {[%clk 0:02:43]} 11. Be3 {[%clk 0:02:53]}  Be7 {[%clk 0:02:38]} 12. h3 {[%clk 0:02:49]}  Bh5 {[%clk 0:02:37]} 13. Qd2 {[%clk 0:02:42]}  b5 {[%clk 0:02:32]} 14. Ng3 {[%clk 0:02:41]}  Rc8 {[%clk 0:02:24]} 15. Nd5 {[%clk 0:02:40]}  Nxd5 {[%clk 0:02:22]} 16. Nxh5 {[%clk 0:02:19]}  Nxe3 {[%clk 0:02:21]} 17. Qxe3 {[%clk 0:02:19]}  Bh4+ {[%clk 0:02:21]} 18. Kf1 {[%clk 0:02:07]}  O-O {[%clk 0:02:20]} 19. c3 {[%clk 0:02:06]}  Nf6 {[%clk 0:02:20]} 20. Bf3 {[%clk 0:01:59]}  Nxh5 {[%clk 0:02:18]} 21. Bxh5 {[%clk 0:01:59]}  g6 {[%clk 0:02:18]} 22. Bf3 {[%clk 0:01:59]}  Re8 {[%clk 0:02:16]} 23. Kg2 {[%clk 0:01:56]}  b4 {[%clk 0:02:16]} 24. Rad1 {[%clk 0:01:55]}  bxc3 {[%clk 0:02:15]} 25. bxc3 {[%clk 0:01:56]}  Qa5 {[%clk 0:02:14]} 26. Rxd6 {[%clk 0:01:48]}  Rxc3 {[%clk 0:02:12]} 27. Qe2 {[%clk 0:01:39]}  Rec8 {[%clk 0:02:03]} 28. Rhd1 {[%clk 0:01:38]}  Qc7 {[%clk 0:01:55]} 29. e5 {[%clk 0:01:35]}  Qc5 {[%clk 0:01:48]} 30. e6 {[%clk 0:01:29]}  Rc2 {[%clk 0:01:47]} 31. exf7+ {[%clk 0:01:23]}  Kxf7 {[%clk 0:01:46]} 32. R1d2 {[%clk 0:01:21]}  Qxd6 {[%clk 0:01:42]} 33. Rxc2 {[%clk 0:01:21]}  Rxc2 {[%clk 0:01:42]} 34. Qxc2 {[%clk 0:01:22]}  Qxf4 {[%clk 0:01:43]} 35. Qb3+ {[%clk 0:01:13]}  Kg7 {[%clk 0:01:40]} 36. Kf1 {[%clk 0:00:35]}  Qd2 {[%clk 0:01:35]} 37. Kg1 {[%clk 0:00:23]}  Qf2+ {[%clk 0:01:33]} 38. Kh1 {[%clk 0:00:23]}  Bg3 {[%clk 0:01:33]} 39. Qc3+ {[%clk 0:00:20]}  Kh6 {[%clk 0:01:19]} 40. Qc1+ {[%clk 0:00:20]}  Kg7 {[%clk 0:01:15]} 41. Qc3+ {[%clk 0:00:20]}  Kf7 {[%clk 0:01:12]} 42. Bd5+ {[%clk 0:00:19]}  Ke7 {[%clk 0:01:11]} 43. Qb4+ {[%clk 0:00:19]}  Kf6 {[%clk 0:01:11]} 44. Qc3+ {[%clk 0:00:19]}  Kg5 {[%clk 0:01:07]} 45. Qc1+ {[%clk 0:00:18]}  Bf4 {[%clk 0:01:08]} 46. Qg1+ {[%clk 0:00:18]}  Qxg1+ {[%clk 0:01:05]} 47. Kxg1 {[%clk 0:00:19]}  Kf6 {[%clk 0:01:05]} 48. Kg2 {[%clk 0:00:19]}  Ke5 {[%clk 0:01:05]} 49. Bb3 {[%clk 0:00:20]}  a5 {[%clk 0:01:06]} 50. Kf3 {[%clk 0:00:20]}  Bc1 {[%clk 0:01:05]} 51. Bg8 {[%clk 0:00:21]}  h6 {[%clk 0:01:05]} 52. Bh7 {[%clk 0:00:22]}  g5 {[%clk 0:01:05]} 53. a4 {[%clk 0:00:22]}  Kd4 {[%clk 0:01:06]} 54. Bg6 {[%clk 0:00:22]} 1/2-1/2


[Site "https://www.chess.com"]

[Event "Titled Tuesday Blitz June 28 Early 2022"]
[White "Begunov, Konstantin"]
[Black "Nunez V, Gustavo Eduardo"]
[WhiteFideId "4118510"]
[BlackFideId "4403690"]
[WhiteElo "2262"]
[BlackElo "2228"]
[Result "1-0"]
[Round "11"]
[TimeControl "180+1"]
[Date "2022.06.28"]
[WhiteClock "0:00:15"]
[BlackClock "0:00:02"]

1. d4 {[%clk 0:03:00]}  Nf6 {[%clk 0:02:59]} 2. c4 {[%clk 0:03:00]}  g6 {[%clk 0:02:59]} 3. f3 {[%clk 0:03:00]}  Bg7 {[%clk 0:02:59]} 4. e4 {[%clk 0:03:01]}  d6 {[%clk 0:03:00]} 5. Nc3 {[%clk 0:03:01]}  c5 {[%clk 0:03:00]} 6. dxc5 {[%clk 0:02:56]}  dxc5 {[%clk 0:02:54]} 7. Qxd8+ {[%clk 0:02:56]}  Kxd8 {[%clk 0:02:55]} 8. Bf4 {[%clk 0:02:55]}  Nc6 {[%clk 0:02:51]} 9. O-O-O+ {[%clk 0:02:55]}  Nd4 {[%clk 0:02:49]} 10. Be5 {[%clk 0:02:31]}  Nh5 {[%clk 0:02:47]} 11. Bxg7 {[%clk 0:02:31]}  Nxg7 {[%clk 0:02:48]} 12. e5 {[%clk 0:02:14]}  Ke8 {[%clk 0:02:42]} 13. Nge2 {[%clk 0:02:12]}  Ngf5 {[%clk 0:02:40]} 14. Nxd4 {[%clk 0:02:05]}  Nxd4 {[%clk 0:02:41]} 15. Bd3 {[%clk 0:01:56]}  Be6 {[%clk 0:02:30]} 16. Be4 {[%clk 0:01:50]}  Rb8 {[%clk 0:02:26]} 17. Bd5 {[%clk 0:01:47]}  Bxd5 {[%clk 0:02:18]} 18. Nxd5 {[%clk 0:01:39]}  e6 {[%clk 0:01:56]} 19. Nc7+ {[%clk 0:01:12]}  Ke7 {[%clk 0:01:51]} 20. Nb5 {[%clk 0:01:13]}  Rhd8 {[%clk 0:01:40]} 21. Nxa7 {[%clk 0:00:57]}  Ra8 {[%clk 0:01:38]} 22. Nb5 {[%clk 0:00:56]}  Rxa2 {[%clk 0:01:31]} 23. Kb1 {[%clk 0:00:51]}  Ra5 {[%clk 0:01:25]} 24. Nd6 {[%clk 0:00:46]}  Rxd6 {[%clk 0:01:01]} 25. exd6+ {[%clk 0:00:46]}  Kxd6 {[%clk 0:01:02]} 26. Rhe1 {[%clk 0:00:44]}  f6 {[%clk 0:00:54]} 27. Re3 {[%clk 0:00:43]}  Ra4 {[%clk 0:00:51]} 28. Rc1 {[%clk 0:00:35]}  e5 {[%clk 0:00:44]} 29. Ra3 {[%clk 0:00:32]}  Rxa3 {[%clk 0:00:32]} 30. bxa3 {[%clk 0:00:33]}  f5 {[%clk 0:00:24]} 31. Re1 {[%clk 0:00:33]}  Ne6 {[%clk 0:00:20]} 32. Kc2 {[%clk 0:00:29]}  Nf4 {[%clk 0:00:18]} 33. g3 {[%clk 0:00:30]}  Ne6 {[%clk 0:00:17]} 34. Kd3 {[%clk 0:00:29]}  Ng5 {[%clk 0:00:17]} 35. Ke3 {[%clk 0:00:28]}  Ne6 {[%clk 0:00:12]} 36. Rb1 {[%clk 0:00:26]}  Kc6 {[%clk 0:00:13]} 37. Rd1 {[%clk 0:00:26]}  Nd4 {[%clk 0:00:12]} 38. g4 {[%clk 0:00:20]}  b6 {[%clk 0:00:09]} 39. gxf5 {[%clk 0:00:20]}  gxf5 {[%clk 0:00:10]} 40. Rg1 {[%clk 0:00:20]}  Nc2+ {[%clk 0:00:10]} 41. Kd3 {[%clk 0:00:18]}  Nxa3 {[%clk 0:00:09]} 42. Rg7 {[%clk 0:00:18]}  b5 {[%clk 0:00:08]} 43. cxb5+ {[%clk 0:00:18]}  Nxb5 {[%clk 0:00:06]} 44. Rxh7 {[%clk 0:00:19]}  Kd5 {[%clk 0:00:06]} 45. Rd7+ {[%clk 0:00:18]}  Nd6 {[%clk 0:00:07]} 46. h4 {[%clk 0:00:18]}  Ke6 {[%clk 0:00:07]} 47. Rd8 {[%clk 0:00:17]}  Nf7 {[%clk 0:00:04]} 48. Rc8 {[%clk 0:00:15]}  Kd5 {[%clk 0:00:02]} 49. h5 {[%clk 0:00:15]} 1-0


[Site "https://www.chess.com"]